bitfinex/quotes_ETHUSD_20240915
["timestamp","ask_amount","ask_price","bid_price","bid_amount"]
[1726369602716,8.77981,2430.5,2430.4,0.51650229]
[1726369602919,8.77981,2430.5,2430.3,0.51651133]
[1726369603125,8.77981,2430.5,2430.4,0.51650229]
[1726369603422,8.77981,2430.5,2430.1,0.9017245]
[1726369603605,8.77981,2430.5,2430.4,0.51650229]
[1726369603825,8.77981,2430.5,2430.1,0.9017245]
[1726369604012,8.77981,2430.5,2430.4,0.51650229]
[1726369604218,8.77981,2430.5,2430.1,0.9017245]
[1726369604413,3.29164,2430.4,2430.2,0.61472763]
[1726369604602,6.29164,2430.4,2430.3,0.61472763]
[1726369604998,6.29164,2430.4,2430.3,0.61474722]
[1726369605305,6.29164,2430.4,2430.1,0.9017245]
[1726369605621,6.29164,2430.4,2430.3,0.61474619]
[1726369605827,6.29164,2430.4,2430.1,0.9017245]
[1726369618100,6.29164,2430.4,2430.2,0.8619845]
[1726369619397,6.29164,2430.4,2430.3,0.66981161]
[1726369619631,6.29164,2430.4,2430.3,1.18633267]
[1726369621244,6.29164,2430.4,2430.3,0.51652106]
[1726369621600,6.29164,2430.4,2430.3,0.66981397]
[1726369621800,6.29164,2430.4,2430.3,1.18633503]
[1726369623865,7.62834873,2430.4,2430.3,1.18633503]
[1726369624145,6.29164,2430.4,2430.3,1.18633503]
[1726369624502,6.29164,2430.4,2430.3,0.51652106]
[1726369624943,6.29164,2430.4,2430.2,0.8619845]
[1726369625136,6.29164,2430.4,2430.3,1.18631127]
[1726369625740,6.29164,2430.4,2430.3,1.85611454]
[1726369627313,7.62309473,2430.4,2430.3,1.85611454]
[1726369627728,10.05879473,2430.4,2430.3,1.85611454]
[1726369628109,10.05879473,2430.4,2430.3,1.18631127]
[1726369628447,10.05878473,2430.4,2430.3,1.18625211]
[1726369629021,10.05878473,2430.4,2430.3,0.51651134]
[1726369629241,10.05878473,2430.4,2430.3,1.18628829]
[1726369629556,10.05878473,2430.4,2430.3,0.66977695]
[1726369629729,10.05878473,2430.4,2430.3,1.18630773]
[1726369631957,10.05878473,2430.4,2430.3,1.18631254]
[1726369632254,10.05878473,2430.4,2430.3,0.51653078]
[1726369632631,3.29182,2430.3,2430.1,0.9017245]
[1726369632922,3.29182,2430.3,2430.2,0.66983202]
[1726369633864,3.29182,2430.3,2430.2,0.66982305]
[1726369634150,8.72733,2430.4,2430.2,0.66982305]
[1726369634324,8.72733,2430.4,2430.3,0.66979631]
[1726369634325,12.01904,2430.4,2430.3,0.66979631]
[1726369634529,12.01904,2430.4,2430.3,1.18632709]
[1726369635147,12.01904,2430.4,2430.3,0.51653078]
[1726369635447,12.01904,2430.4,2430.3,0.66980515]
[1726369635648,8.72733,2430.4,2430.3,1.18633593]
[1726369635950,6.29163,2430.4,2430.3,1.18633593]
[1726369636113,6.29154,2430.5,2430.3,1.18633593]
[1726369636314,6.29154,2430.5,2430.3,0.51653078]
[1726369636529,6.29154,2430.5,2430.2,0.8619845]
[1726369636741,6.29154,2430.5,2430.1,2.32524]
[1726369636742,6.29154,2430.5,2430.3,0.66975146]
[1726369636966,6.29154,2430.5,2430.3,0.51653078]
[1726369637166,6.29154,2430.5,2430.1,3.1872245]
[1726369637486,6.29154,2430.5,2430.2,2.04824299]
[1726369637770,6.29154,2430.5,2430.3,0.66971867]
[1726369637973,6.29154,2430.5,2430.2,1.37852432]
[1726369638172,6.29154,2430.5,2430.3,0.51653078]
[1726369638464,6.29154,2430.5,2430.3,0.66970663]
[1726369638679,6.29154,2430.5,2430.1,3.1872245]
[1726369638680,6.29154,2430.5,2430.4,0.51652175]
[1726369639064,6.29154,2430.5,2430.2,0.8619845]
[1726369639273,6.29154,2430.5,2430.3,0.66972059]
[1726369639478,6.29154,2430.5,2430.3,0.51653562]
[1726369639874,6.29154,2430.5,2430.1,3.1872245]
[1726369640081,6.29154,2430.5,2430.4,0.51652658]
[1726369640875,6.29154,2430.5,2430.1,4.65566985]
[1726369641170,6.29154,2430.5,2430.1,3.1872245]
[1726369641608,6.29154,2430.5,2430.2,0.51654466]
[1726369644120,6.29154,2430.5,2430.3,0.4184655]
[1726369644312,6.29154,2430.5,2430.4,0.4184655]
[1726369644787,6.29154,2430.5,2430.4,0.93499208]
[1726369644987,7.79573836,2430.5,2430.4,0.93499208]
[1726369655245,7.79573836,2430.5,2430.4,0.51652658]
[1726369655630,7.79573836,2430.5,2430.1,3.1872245]
[1726369655945,6.29154,2430.5,2430.4,0.93494572]
[1726369656235,6.29154,2430.5,2430.4,0.51652175]
[1726369656634,6.29154,2430.5,2430.1,3.1872245]
[1726369656826,6.29154,2430.5,2430.4,0.51652175]
[1726369657138,6.29154,2430.5,2430.1,3.1872245]
[1726369657338,6.29154,2430.5,2430.4,0.51652175]
[1726369657544,7.79573836,2430.5,2430.1,3.1872245]
[1726369657696,6.29154,2430.5,2430.4,0.51652175]
[1726369657896,6.29154,2430.5,2430.1,3.1872245]
[1726369658099,6.29154,2430.5,2430.4,0.51652175]
[1726369658295,6.29154,2430.5,2430.1,3.1872245]
[1726369658539,6.29154,2430.5,2430.4,0.51652175]
[1726369658742,6.29154,2430.5,2430.1,3.1872245]
[1726369658743,7.79573836,2430.5,2430.1,3.1872245]
[1726369658899,6.29154,2430.5,2430.4,0.51652175]
[1726369659103,6.29154,2430.5,2430.1,3.1872245]
[1726369659303,6.29154,2430.5,2430.4,0.51652175]
[1726369659517,7.79573836,2430.5,2430.1,3.1872245]
[1726369659700,6.29154,2430.5,2430.4,0.51652175]
[1726369659901,6.29154,2430.5,2430.1,3.1872245]
[1726369660101,6.29154,2430.5,2430.4,0.51652175]
[1726369660342,6.29154,2430.5,2430.1,3.1872245]
[1726369660543,6.29154,2430.5,2430.4,0.51652175]
[1726369660745,3.29164,2430.4,2430.1,3.1872245]
[1726369662441,6.58336,2430.4,2430.1,3.1872245]
[1726369662647,3.29164,2430.4,2430.1,3.1872245]
[1726369664529,3.29164,2430.4,2430.2,0.51654466]
[1726369665709,6.29164,2430.4,2430.3,0.61450788]
[1726369666042,6.29164,2430.4,2430.3,1.13103479]
[1726369668445,6.29164,2430.4,2430.3,0.51653562]
[1726369668744,9.95208773,2430.4,2430.3,0.51653562]
[1726369668966,3.29179,2430.3,2430.1,0.03974]
[1726369669107,3.29179,2430.3,2430.2,0.61471967]
[1726369675642,3.29179,2430.3,2430.1,0.03974]
[1726369675861,3.29179,2430.3,2430.2,0.61470343]
[1726369676835,3.29179,2430.3,2430.2,0.6147059]
[1726369678846,3.29179,2430.3,2430.1,0.03974]
[1726369679029,3.29179,2430.3,2430.2,0.614673]
[1726369679448,3.29179,2430.3,2430.2,1.13125656]
[1726369680378,3.29179,2430.3,2430.2,0.51658356]
[1726369688460,10.35219473,2430.3,2430.2,0.51658356]
[1726369688827,13.35219473,2430.3,2430.2,0.51658356]
[1726369693377,12.03138,2430.3,2430.2,0.51658356]
[1726369710318,13.32707727,2430.3,2430.2,0.51658356]
[1726369732288,10.87927727,2430.3,2430.2,0.51658356]
[1726369745724,13.63607636,2430.3,2430.2,0.51658356]
[1726369762741,11.90848,2430.3,2430.2,0.51658356]
[1726369762981,15.22247289,2430.3,2430.2,0.51658356]
[1726369763294,15.22249391,2430.3,2430.2,0.51658356]
[1726369764186,13.49134842,2430.3,2430.2,0.51658356]
[1726369764629,15.22246483,2430.3,2430.2,0.51658356]
[1726369765822,13.49134842,2430.3,2430.2,0.51658356]
[1726369766028,15.22246046,2430.3,2430.2,0.51658356]
[1726369772902,12.89756046,2430.3,2430.2,0.51658356]
[1726369773106,12.89756046,2430.3,2430.2,2.95898356]
[1726369773107,7.59007606,2430.3,2430.2,2.95898356]
[1726369773315,4.29830606,2430.3,2430.2,3.37726383]
[1726369773522,7.59007606,2430.3,2430.2,3.37726383]
[1726369774256,7.59007606,2430.3,2430.2,2.95898356]
[1726369779135,8.02288204,2430.3,2430.2,0.51658356]
[1726369779344,9.67615447,2430.3,2430.2,0.51658356]
[1726369786445,8.02288204,2430.3,2430.2,0.51658356]
[1726369786751,8.02288204,2430.3,2430.2,2.97478356]
[1726369787045,6.29177,2430.3,2430.2,2.97478356]
[1726369787248,8.02288204,2430.3,2430.2,2.97478356]
[1726369788067,6.29177,2430.3,2430.2,2.97478356]
[1726369788351,8.02288204,2430.3,2430.2,2.97478356]
[1726369791051,6.29177,2430.3,2430.2,2.97478356]
[1726369791654,7.59000744,2430.3,2430.2,2.97478356]
[1726369793561,7.58998689,2430.3,2430.2,2.97478356]
[1726369793760,6.29177,2430.3,2430.2,2.97478356]
[1726369794256,7.58998853,2430.3,2430.2,2.97478356]
[1726369794756,6.29177,2430.3,2430.2,2.97478356]
[1726369794953,7.58997813,2430.3,2430.2,2.97478356]
[1726369797551,6.29177,2430.3,2430.2,2.97478356]
[1726369798763,7.58996998,2430.3,2430.2,2.97478356]
[1726369806566,9.24323503,2430.3,2430.2,0.51658356]
[1726369811381,7.94503505,2430.3,2430.2,0.51658356]
[1726369811862,9.24335701,2430.3,2430.2,0.51658356]
[1726369812028,7.59009196,2430.3,2430.2,3.40720851]
[1726369814375,7.59009196,2430.3,2430.2,2.98878356]
[1726369814564,7.59009196,2430.3,2430.2,3.40729138]
[1726369815301,7.59009196,2430.3,2430.2,3.40730142]
[1726369815785,4.29832196,2430.4,2430.2,3.40730142]
[1726369815985,4.29832196,2430.4,2430.3,0.41851786]
[1726369816306,1.29832196,2430.6,2430.4,2.4722]
[1726369816483,1.29832196,2430.7,2430.4,2.4722]
[1726369816656,5.02228204,2430.8,2430.4,2.4722]
[1726369816657,1.29832196,2430.6,2430.5,0.49951469]
[1726369817488,4.29832196,2430.7,2430.5,0.49951469]
[1726369817997,7.58955196,2430.7,2430.5,0.49951469]
[1726369818668,4.29832196,2430.7,2430.5,0.49951469]
[1726369821170,7.58956196,2430.7,2430.5,0.49951469]
[1726369821951,4.29832196,2430.7,2430.5,0.49951469]
[1726369822997,7.58957196,2430.7,2430.5,0.49951469]
[1726369824757,8.59356,2430.6,2430.5,0.49951469]
[1726369825096,3.0,2430.5,2430.1,5.60839]
[1726369825255,3.0,2430.5,2430.1,6.62774867]
[1726369825457,3.0,2430.5,2430.1,2.31644]
[1726369825676,6.29163,2430.5,2430.1,0.03974]
[1726369829618,6.29163,2430.5,2430.2,0.48283113]
[1726369829915,3.29165,2430.4,2430.2,0.48283113]
[1726369844710,6.5834,2430.4,2430.2,0.48283113]
[1726369844925,3.29165,2430.4,2430.2,0.48283113]
[1726369847655,6.58336,2430.4,2430.2,0.48283113]
[1726369848244,3.29177,2430.3,2430.2,0.48283113]
[1726369850025,3.29165,2430.4,2430.2,0.48283113]
[1726369854541,4.58997196,2430.4,2430.2,0.48283113]
[1726369854765,3.29165,2430.4,2430.2,0.48283113]
[1726369855492,4.58997196,2430.4,2430.2,0.48283113]
[1726369858182,3.29165,2430.4,2430.2,0.48283113]
[1726369858400,4.58997196,2430.4,2430.2,0.48283113]
[1726369858569,3.29165,2430.4,2430.2,0.48283113]
[1726369863561,4.58997196,2430.4,2430.2,0.48283113]
[1726369875571,1.29832196,2430.4,2430.3,2.3221]
[1726369876010,1.29832196,2430.4,2430.3,2.88951661]
[1726369876185,4.29832196,2430.5,2430.3,2.88951661]
[1726369876379,3.0,2430.5,2430.3,2.88951661]
[1726369876593,3.0,2430.5,2430.4,0.41880696]
[1726369877007,3.0,2430.5,2430.4,0.98621105]
[1726369877490,3.0,2430.5,2430.4,0.56740409]
[1726369877811,3.0,2430.5,2430.4,0.98621564]
[1726369878519,4.29832196,2430.5,2430.4,0.98621564]
[1726369880841,4.29832196,2430.5,2430.4,0.56740409]
[1726369881026,4.29832196,2430.5,2430.4,0.98623034]
[1726369885529,4.29832196,2430.5,2430.4,0.98623719]
[1726369887342,4.29832196,2430.5,2430.4,0.56740409]
[1726369888279,4.29832196,2430.5,2430.4,0.98624165]
[1726369888506,4.29832196,2430.5,2430.4,0.56740409]
[1726369889065,3.0,2430.5,2430.4,0.56740409]
[1726369889309,3.0,2430.5,2430.4,0.98622686]
[1726369889619,4.29832196,2430.5,2430.4,0.56740409]
[1726369889769,4.29832196,2430.5,2430.4,0.98623319]
[1726369890205,4.29832196,2430.5,2430.4,0.56740409]
[1726369890566,7.58982196,2430.5,2430.4,0.56740409]
[1726369891180,7.58982196,2430.5,2430.4,0.98625015]
[1726369891510,7.58982196,2430.5,2430.4,0.56740409]
[1726369892961,8.8920547,2430.5,2430.4,0.56740409]
[1726369893408,8.8920547,2430.5,2430.1,0.03974]
[1726369893605,7.58982196,2430.5,2430.4,0.56735549]
[1726369893908,10.03102196,2430.5,2430.4,0.56738466]
[1726369894155,10.03102196,2430.5,2430.2,0.61490039]
[1726369894156,10.03102196,2430.5,2430.1,0.03974]
[1726369894419,10.03102196,2430.5,2430.4,0.56738466]
[1726369894581,11.75268408,2430.5,2430.1,0.03974]
[1726369894783,10.03102196,2430.5,2430.4,0.56738466]
[1726369894990,10.03102196,2430.5,2430.1,0.03974]
[1726369895507,10.03102196,2430.5,2430.2,0.56740971]
[1726369895802,6.73952196,2430.5,2430.2,0.56740971]
[1726369896019,3.29165,2430.4,2430.2,0.56740971]
[1726369896424,6.58337,2430.4,2430.2,0.56740971]
[1726369896586,5.73297,2430.3,2430.2,0.56740971]
[1726369896790,13.32306196,2430.3,2430.2,0.56740971]
[1726369903433,12.02474,2430.3,2430.2,0.56740971]
[1726369903642,13.75585204,2430.3,2430.2,0.56740971]
[1726369903998,9.58382,2430.2,2430.1,0.03974]
[1726369904194,12.60035593,2430.2,2430.1,0.03974]
[1726369904401,12.60035593,2430.2,2430.1,0.58839885]
[1726369904657,7.58913093,2430.2,2430.1,0.03974]
[1726369904868,6.29191,2430.2,2430.1,0.58839885]
[1726369924829,3.0,2430.2,2430.1,0.58839885]
[1726369925984,6.29191,2430.2,2430.1,0.58839885]
[1726369928245,3.0,2430.2,2430.1,0.58839885]
[1726369941217,4.29722093,2430.2,2430.1,0.58839885]
[1726369941580,3.0,2430.2,2430.1,0.58839885]
[1726369942098,4.29722093,2430.2,2430.1,0.58839885]
[1726369954005,3.0,2430.2,2430.1,0.58839885]
[1726369957628,4.29722093,2430.2,2430.1,0.58839885]
[1726369958227,3.0,2430.2,2430.1,0.58839885]
[1726369958789,4.29722093,2430.2,2430.1,0.58839885]
[1726369963569,3.0,2430.2,2430.1,0.58839885]
[1726369969570,4.29722093,2430.2,2430.1,0.58839885]
[1726369969769,3.0,2430.2,2430.1,0.58839885]
[1726369970585,4.29722093,2430.2,2430.1,0.58839885]
[1726369976455,1.29722093,2430.2,2430.1,0.58839885]
[1726369994597,7.58899093,2430.3,2430.1,0.58839885]
[1726369995296,1.29722093,2430.2,2430.1,0.58839885]
[1726369996085,7.58899093,2430.3,2430.1,0.58839885]
[1726369996446,1.29722093,2430.2,2430.1,0.58839885]
[1726370003927,7.58899093,2430.3,2430.1,0.58839885]
[1726370005349,1.29722093,2430.2,2430.1,0.58839885]
[1726370007054,7.58899093,2430.3,2430.1,0.58839885]
[1726370013848,7.58899093,2430.3,2430.2,0.41886133]
[1726370014052,7.58899093,2430.3,2430.2,0.96243354]
[1726370014252,7.58899093,2430.3,2430.2,0.96243533]
[1726370014455,6.29177,2430.3,2430.2,0.96243533]
[1726370014639,6.29177,2430.3,2430.2,0.54357221]
[1726370014948,6.29177,2430.3,2430.2,0.96245071]
[1726370016433,8.02288204,2430.3,2430.2,0.96245071]
[1726370016663,6.29177,2430.3,2430.2,0.96245071]
[1726370016852,7.5903722,2430.3,2430.2,0.96245071]
[1726370017065,7.59037383,2430.3,2430.2,0.96245071]
[1726370017239,7.59037571,2430.3,2430.2,0.96245071]
[1726370017570,7.59037028,2430.3,2430.2,0.96245071]
[1726370018283,7.59037028,2430.3,2430.2,0.54357221]
[1726370018584,6.29177,2430.3,2430.2,0.96243002]
[1726370018745,7.59038735,2430.3,2430.2,0.96243002]
[1726370020494,7.59036162,2430.3,2430.2,0.96243002]
[1726370021689,7.59036162,2430.3,2430.2,0.54357221]
[1726370022185,7.59036821,2430.3,2430.2,0.96243032]
[1726370022383,8.2268605,2430.3,2430.2,0.96243032]
[1726370022593,7.59036821,2430.3,2430.2,0.96243032]
[1726370024413,7.59036821,2430.3,2430.2,0.54357221]
[1726370024585,7.59038712,2430.3,2430.2,0.96243052]
[1726370024775,6.29177,2430.3,2430.2,0.96243052]
[1726370025718,7.59039188,2430.3,2430.2,0.96243052]
[1726370026714,6.29177,2430.3,2430.2,0.96243052]
[1726370027195,7.59040321,2430.3,2430.2,0.96243052]
[1726370027714,8.02288204,2430.3,2430.2,0.96243052]
[1726370027921,6.29177,2430.3,2430.2,0.96243052]
[1726370028088,8.02288204,2430.3,2430.2,0.96243052]
[1726370028278,6.29177,2430.3,2430.2,0.96243052]
[1726370028478,6.29177,2430.3,2430.2,0.54357221]
[1726370028907,6.29177,2430.3,2430.2,0.96248997]
[1726370029814,6.29177,2430.3,2430.2,0.54357221]
[1726370030223,8.02288204,2430.3,2430.2,0.96248099]
[1726370030391,6.29177,2430.3,2430.2,0.96248099]
[1726370031321,7.59041479,2430.3,2430.2,0.96248099]
[1726370031726,6.29177,2430.3,2430.2,0.96248099]
[1726370031883,8.02288204,2430.3,2430.2,0.96248099]
[1726370032324,7.59041088,2430.3,2430.2,0.96248099]
[1726370033199,8.93235582,2430.3,2430.2,0.96248099]
[1726370033615,11.85262698,2430.3,2430.2,0.96248099]
[1726370034132,10.12151494,2430.3,2430.2,0.96248099]
[1726370034631,11.85262698,2430.3,2430.2,0.96248099]
[1726370035001,10.12151494,2430.3,2430.2,0.96248099]
[1726370035522,11.85262698,2430.3,2430.2,0.54357221]
[1726370035826,10.12151494,2430.3,2430.2,0.96248061]
[1726370036729,11.85262698,2430.3,2430.2,0.96248061]
[1726370036935,15.14447698,2430.3,2430.2,0.96248061]
[1726370037731,13.41336494,2430.3,2430.2,0.54357221]
[1726370038425,15.14479566,2430.3,2430.2,0.54357221]
[1726370038595,15.14481334,2430.3,2430.2,0.54357221]
[1726370038807,13.41336494,2430.3,2430.2,0.54357221]
[1726370039149,15.57784124,2430.3,2430.2,0.54357221]
[1726370039359,13.41336494,2430.3,2430.2,0.54357221]
[1726370040222,15.14465103,2430.3,2430.2,0.54357221]
[1726370041110,13.41336494,2430.3,2430.2,0.54357221]
[1726370041311,15.14452715,2430.3,2430.2,0.54357221]
[1726370041559,13.41336494,2430.3,2430.2,0.54357221]
[1726370042265,15.14442245,2430.3,2430.2,0.54357221]
[1726370042603,13.41336494,2430.3,2430.2,0.54357221]
[1726370042808,15.57784124,2430.3,2430.2,0.54357221]
[1726370043148,6.58382,2430.2,2430.1,0.03974]
[1726370043450,14.8044361,2430.2,2430.1,0.03974]
[1726370046335,13.07350168,2430.2,2430.1,0.03974]
[1726370046533,14.8044361,2430.2,2430.1,0.03974]
[1726370047459,13.07350168,2430.2,2430.1,0.03974]
[1726370048329,14.37131493,2430.2,2430.1,0.03974]
[1726370048534,12.63790376,2430.2,2430.1,0.03974]
[1726370048762,10.88163325,2430.2,2430.1,0.03974]
[1726370053421,4.29781325,2430.2,2430.1,0.03974]
[1726370053680,1.29781325,2430.6,2430.1,4.80861599]
[1726370053839,1.29781325,2430.7,2430.6,2.3501]
[1726370054036,3.02874767,2431.0,2430.6,2.76073705]
[1726370054271,5.88380663,2431.2,2430.6,2.76073705]
[1726370054272,4.58847325,2431.2,2430.7,2.3501]
[1726370054429,3.29086,2431.0,2430.7,2.89100307]
[1726370058245,3.0,2431.1,2430.7,2.89100307]
[1726370064463,3.0,2431.1,2430.7,6.18221307]
[1726370064682,3.0,2431.3,2430.9,2.3175]
[1726370064972,3.0,2431.3,2431.0,0.53904799]
[1726370065345,3.0,2431.3,2430.9,2.3175]
[1726370069284,3.0,2431.3,2430.9,2.88659788]
[1726370069482,3.0,2431.3,2431.0,0.53900498]
[1726370070355,12.93715,2431.6,2431.0,0.53900498]
[1726370070356,3.0,2431.5,2431.0,0.53900498]
[1726370070684,6.29015,2431.5,2431.1,2.3175]
[1726370070988,6.29015,2431.5,2431.2,0.53888915]
[1726370071195,3.0,2431.5,2431.2,0.53888915]
[1726370071486,6.29015,2431.5,2431.2,0.53888915]
[1726370072990,3.0,2431.5,2431.2,0.53888915]
[1726370073668,6.29017,2431.5,2431.2,0.53888915]
[1726370074776,3.0,2431.5,2431.2,0.53888915]
[1726370084665,6.28989,2431.7,2431.2,0.53888915]
[1726370086385,6.95536676,2431.7,2431.2,0.53888915]
[1726370094985,6.28989,2431.7,2431.3,2.3712]
[1726370095244,6.28989,2431.7,2431.3,2.90977561]
[1726370096485,7.58770325,2431.7,2431.3,2.90977561]
[1726370096686,6.28989,2431.7,2431.3,2.90977561]
[1726370096908,7.58770325,2431.7,2431.3,2.90977561]
[1726370097130,6.28989,2431.7,2431.3,2.90977561]
[1726370097328,7.58770325,2431.7,2431.3,2.90977561]
[1726370098189,9.31863767,2431.7,2431.3,2.90977561]
[1726370098389,1.29781325,2431.6,2431.3,2.90977561]
[1726370099304,4.29781325,2431.5,2431.3,2.90977561]
[1726370100512,4.29781325,2431.5,2431.3,0.53857561]
[1726370100513,5.22969002,2431.5,2431.3,0.53857561]
[1726370100896,5.22969002,2431.5,2431.1,2.3712]
[1726370101101,4.29781325,2431.5,2431.4,0.53851054]
[1726370101434,3.0,2431.5,2431.4,0.53851054]
[1726370101748,4.29598487,2431.5,2431.1,2.3712]
[1726370102065,4.29598487,2431.4,2431.2,0.53853557]
[1726370102911,1.29598487,2431.4,2431.2,0.53853557]
[1726370109721,4.58627487,2431.4,2431.2,0.53853557]
[1726370111523,1.29598487,2431.3,2431.2,0.53853557]
[1726370111724,4.58627487,2431.4,2431.2,0.53853557]
[1726370112449,1.29598487,2431.3,2431.2,0.53853557]
[1726370116267,1.29598487,2431.3,2431.2,0.95682085]
[1726370116423,1.29598487,2431.3,2431.2,0.53853557]
[1726370116980,1.29598487,2431.3,2431.2,0.95682814]
[1726370118884,4.74059289,2431.3,2431.2,0.95682814]
[1726370119043,8.46596244,2431.3,2431.2,0.53853557]
[1726370119249,8.46596244,2431.3,2430.9,0.61400848]
[1726370119452,1.29777151,2431.2,2431.0,0.53859885]
[1726370119755,1.29777151,2431.2,2430.7,9.84037821]
[1726370119961,1.29782588,2431.2,2431.1,0.53858633]
[1726370120175,1.29779019,2431.2,2430.7,6.54923821]
[1726370120347,1.29779019,2431.2,2431.1,0.53858633]
[1726370120558,1.29779019,2431.2,2430.7,9.84037821]
[1726370120742,1.29779019,2431.2,2430.8,0.61404576]
[1726370121073,1.29779019,2431.2,2430.8,0.53862389]
[1726370121439,1.29779019,2431.2,2430.7,11.30173766]
[1726370121768,1.29779019,2431.2,2430.8,1.15265516]
[1726370122073,1.29779019,2431.2,2430.8,0.53862389]
[1726370122438,1.29779019,2431.2,2430.7,11.30173766]
[1726370122638,1.29779019,2431.2,2430.8,1.15265621]
[1726370122860,1.29779019,2431.2,2430.8,1.9022518]
[1726370124177,1.29779019,2431.2,2430.8,5.1933418]
[1726370124366,3.59439019,2431.3,2430.8,5.1933418]
[1726370124782,6.88481019,2431.3,2430.9,0.61398557]
[1726370124947,2.48839365,2431.2,2430.8,0.53862389]
[1726370125210,2.48839365,2431.2,2431.0,0.53862271]
[1726370125468,1.29779019,2431.2,2431.1,0.5386102]
[1726370125677,1.29779019,2431.2,2430.7,6.54923821]
[1726370125678,1.29779019,2431.2,2430.8,0.61402435]
[1726370125871,1.29779019,2431.2,2431.1,0.5386102]
[1726370126101,1.29779019,2431.2,2430.8,0.61400956]
[1726370126377,1.29779019,2431.2,2431.1,0.5386102]
[1726370126538,1.29779019,2431.2,2430.8,0.61401035]
[1726370126740,1.29779019,2431.2,2431.1,0.5386102]
[1726370126966,1.29779019,2431.2,2430.7,8.01062766]
[1726370127149,1.29779019,2431.2,2431.1,0.5386102]
[1726370127349,1.29779019,2431.2,2430.8,0.61402013]
[1726370127540,1.29779019,2431.2,2431.1,0.5386102]
[1726370128177,1.29779019,2431.2,2430.7,8.01062766]
[1726370128377,1.29779019,2431.2,2431.1,0.5386102]
[1726370128541,1.29779019,2431.2,2430.7,6.54923821]
[1726370128741,1.29779019,2431.2,2431.1,0.5386102]
[1726370128963,6.88481019,2431.3,2430.7,6.54923821]
[1726370129165,6.88481019,2431.3,2431.1,0.5386102]
[1726370129355,1.29779019,2431.2,2430.7,6.54923821]
[1726370129567,7.29384989,2431.3,2431.2,0.53859768]
[1726370129876,8.59117238,2431.3,2431.2,0.53859768]
[1726370130082,8.59117238,2431.3,2430.8,0.61399031]
[1726370130380,6.88434249,2431.3,2431.2,0.53859768]
[1726370130888,6.88434249,2431.3,2430.9,2.3554]
[1726370131048,6.88434249,2431.3,2431.2,0.53859768]
[1726370131387,6.88434249,2431.3,2430.9,2.3554]
[1726370131590,6.88434249,2431.3,2431.2,0.53859768]
[1726370131893,8.59111699,2431.3,2431.2,0.59897883]
[1726370132176,8.59111699,2431.3,2430.9,2.3554]
[1726370132380,6.88434249,2431.3,2431.2,0.59897883]
[1726370132583,6.88434249,2431.3,2430.9,2.3554]
[1726370132745,6.88434249,2431.3,2431.2,0.59897883]
[1726370133077,6.88434249,2431.3,2430.9,2.3554]
[1726370133288,3.59392249,2431.3,2431.0,0.59900884]
[1726370138274,6.88434249,2431.3,2431.0,0.59900884]
[1726370141807,1.29732249,2431.2,2431.0,0.59900884]
[1726370142474,1.29732249,2431.2,2430.7,9.69657821]
[1726370142675,1.29732249,2431.2,2430.8,2.54226851]
[1726370142874,1.29732249,2431.2,2430.8,1.9279621]
[1726370144189,3.59392249,2431.3,2430.8,7.83832082]
[1726370144392,1.29732249,2431.3,2430.9,2.8655851]
[1726370144591,1.29732249,2431.3,2430.9,3.84674775]
[1726370144793,1.29732249,2431.3,2431.0,0.58670886]
[1726370147316,4.58761249,2431.4,2431.0,0.58670886]
[1726370154827,1.29732249,2431.4,2431.1,2.2952]
[1726370155285,3.0,2431.5,2431.1,2.2952]
[1726370155286,4.29732249,2431.5,2431.2,0.58665019]
[1726370156827,4.29732249,2431.6,2431.3,2.2952]
[1726370157030,1.73093442,2431.7,2431.4,0.5865963]
[1726370157031,1.29732249,2431.7,2431.4,0.5865963]
[1726370157244,1.29732249,2431.8,2431.5,2.2952]
[1726370157531,1.29732249,2431.8,2431.6,0.58656631]
[1726370158031,8.58732249,2431.9,2431.6,0.58656631]
[1726370158408,3.0,2431.8,2431.6,0.58656631]
[1726370158624,3.0,2431.8,2431.5,2.2952]
[1726370158826,3.0,2431.8,2431.6,0.58656631]
[1726370159054,4.29732249,2431.9,2431.5,2.2952]
[1726370159199,4.29732249,2431.9,2431.6,0.58656631]
[1726370159538,4.29732249,2431.9,2431.5,2.2952]
[1726370159928,4.29732249,2431.9,2431.6,0.58656631]
[1726370160328,4.29732249,2431.9,2431.5,2.2952]
[1726370160709,4.29732249,2431.9,2431.6,0.58656631]
[1726370160915,4.29732249,2431.9,2431.5,2.2952]
[1726370161246,4.29732249,2431.9,2431.6,0.58656631]
[1726370161247,7.58695249,2431.9,2431.6,0.58656631]
[1726370163363,6.28963,2431.9,2431.6,0.58656631]
[1726370165621,6.28963,2431.9,2431.6,1.20376994]
[1726370165622,3.0,2431.9,2431.6,1.20376994]
[1726370166260,3.0,2431.9,2431.6,0.58656631]
[1726370167758,6.28966,2431.9,2431.6,0.58656631]
[1726370168124,3.0,2431.9,2431.6,0.58656631]
[1726370168327,11.698763,2431.7,2431.6,0.58656631]
[1726370168621,2.3553,2431.4,2431.0,2.3774]
[1726370168817,2.3553,2431.4,2431.1,0.58633083]
[1726370169269,5.64561,2431.4,2431.1,0.58633083]
[1726370169427,5.64561,2431.4,2430.8,2.3774]
[1726370169627,5.64561,2431.4,2430.9,0.58646114]
[1726370173190,3.29043,2431.3,2430.9,0.58646114]
[1726370173393,5.64561,2431.4,2430.9,0.58646114]
[1726370174507,5.64561,2431.4,2430.9,1.27342751]
[1726370175995,3.29031,2431.4,2431.0,2.3781]
[1726370176395,3.29031,2431.4,2431.1,0.58643113]
[1726370180509,4.29732249,2431.5,2431.1,0.58643113]
[1726370180702,3.0,2431.5,2431.1,0.95158088]
[1726370181108,6.29016,2431.5,2431.1,0.95158088]
[1726370184937,7.58748249,2431.5,2431.1,0.95158088]
[1726370185905,7.58748249,2431.5,2431.1,0.36514975]
[1726370186107,6.29016,2431.5,2431.2,0.58659763]
[1726370186331,7.58748249,2431.5,2431.1,0.36514975]
[1726370187337,7.58748249,2431.5,2431.2,0.58659763]
[1726370187645,7.58748249,2431.5,2431.1,0.36514975]
[1726370187938,7.58748249,2431.5,2431.2,0.58659763]
[1726370188105,7.58748249,2431.5,2431.1,0.36514975]
[1726370188505,7.58748249,2431.5,2431.2,0.5852943]
[1726370188737,7.58748249,2431.5,2431.1,0.36514975]
[1726370188944,7.58748249,2431.5,2431.2,0.5852943]
[1726370189376,7.58748249,2431.5,2431.1,0.36514975]
[1726370189545,6.29016,2431.5,2431.1,0.36514975]
[1726370189730,7.58748249,2431.5,2431.1,0.36514975]
[1726370190061,7.58748249,2431.5,2431.2,0.5852943]
[1726370190425,7.58748249,2431.5,2431.0,2.3781]
[1726370190426,7.58748249,2431.5,2431.3,0.5852793]